bitfinex-derivatives/quotes_SOLF0:USTF0_20250911
["timestamp","ask_amount","ask_price","bid_price","bid_amount"]
[1757591024319,7.03,224.9,224.83,12.57254568]
[1757591025327,7.03,224.9,224.84,7.6]
[1757591026527,7.03,224.94,224.84,7.6]
[1757591026728,7.03,224.94,224.86,7.6]
[1757591028426,4.97025411,225.09,224.86,7.6]
[1757591028727,8.65739141,224.97,224.89,7.6]
[1757591029129,8.65739141,224.97,224.89,12.57254568]
[1757591029431,8.65739141,224.97,224.89,4.97254568]
[1757591029619,8.65739141,224.97,224.9,7.6]
[1757591029822,7.03,224.97,224.9,7.6]
[1757591035429,7.03,225.02,224.88,53.1]
[1757591035631,2.54252636,225.03,224.88,53.1]
[1757591035829,7.03,225.02,224.87,7.6]
[1757591036035,7.03,224.98,224.87,7.6]
[1757591036330,7.03,224.94,224.83,7.6]
[1757591040929,7.31,224.98,224.84,7.43]
[1757591045940,7.31,224.98,224.85,4.97254568]
[1757591046140,7.31,224.98,224.86,7.43]
[1757591046839,7.31,224.98,224.87,7.43]
[1757591050445,7.31,224.98,224.89,7.43]
[1757591050833,7.31,224.98,224.9,44.84]
[1757591054744,7.31,224.98,224.89,7.43]
[1757591060347,7.31,224.98,224.89,12.40254568]
[1757591060846,7.31,224.98,224.9,7.43]
[1757591064444,7.31,224.98,224.9,12.40254568]
[1757591066546,7.31,224.98,224.91,4.97254568]
[1757591071455,7.31,224.98,224.92,4.97254568]
[1757591072254,7.31,224.98,224.91,4.97254568]
[1757591073354,7.31,224.98,224.92,4.97254568]
[1757591076856,7.31,224.98,224.93,7.14]
[1757591077059,7.31,224.98,224.92,4.97254568]
[1757591077254,7.25,225.02,224.93,7.14]
[1757591077455,7.25,225.0,224.93,7.14]
[1757591079759,2.54252636,225.03,224.93,12.11254568]
[1757591079960,7.25,225.01,224.93,12.11254568]
[1757591080153,7.25,225.02,224.93,12.11254568]
[1757591080359,3.51482332,225.01,224.93,12.11254568]
[1757591080553,7.25,225.02,224.93,12.11254568]
[1757591080759,3.51482332,225.01,224.93,12.11254568]
[1757591080954,7.25,225.02,224.93,12.11254568]
[1757591081160,7.25,225.0,224.93,12.11254568]
[1757591082059,7.25,225.02,224.93,12.11254568]
[1757591082259,7.25,225.0,224.93,12.11254568]
[1757591082458,7.25,225.02,224.93,7.14]
[1757591082659,7.25,225.0,224.93,7.14]
[1757591083364,3.51712034,224.99,224.93,12.11254568]
[1757591083561,7.25,225.0,224.93,12.11254568]
[1757591083757,3.51712034,224.99,224.93,12.11254568]
[1757591084063,7.25,225.0,224.93,12.11254568]
[1757591084262,3.51655349,224.99,224.93,12.11254568]
[1757591084462,7.25,225.0,224.93,12.11254568]
[1757591084664,3.51827254,224.99,224.93,12.11254568]
[1757591084867,7.25,225.0,224.94,12.11254568]
[1757591085068,7.25,225.04,224.95,4.97254568]
[1757591085268,7.25,225.02,224.95,4.97254568]
[1757591085562,2.54252636,225.05,224.95,4.97254568]
[1757591085563,3.5187049,225.01,224.95,4.97254568]
[1757591085769,7.25,225.04,224.95,4.97254568]
[1757591086068,7.25,225.02,224.95,4.97254568]
[1757591086368,2.54252636,225.05,224.95,4.97254568]
[1757591086369,3.51831227,225.01,224.95,4.97254568]
[1757591086563,7.25,225.04,224.95,4.97254568]
[1757591086762,7.25,225.02,224.95,4.97254568]
[1757591086957,10.76825995,225.01,224.95,12.11254568]
[1757591087167,7.25,225.01,224.95,12.11254568]
[1757591088165,2.54252636,225.05,224.95,12.11254568]
[1757591088366,14.25947459,225.04,224.95,7.14]
[1757591088572,7.25,225.02,224.95,7.14]
[1757591088774,7.25,225.0,224.95,7.14]
[1757591088972,7.25,225.04,224.95,7.14]
[1757591089173,7.25,225.02,224.95,7.14]
[1757591089373,7.25,225.0,224.95,7.14]
[1757591089570,7.25,225.04,224.95,7.14]
[1757591089777,7.25,225.02,224.95,7.14]
[1757591089977,7.25,225.0,224.95,7.14]
[1757591090177,7.25,225.04,224.95,7.14]
[1757591090378,13.2618219,225.06,224.95,7.14]
[1757591090379,7.25,224.99,224.95,7.14]
[1757591090771,1.62715703,225.0,224.95,7.14]
[1757591091167,7.25,224.99,224.95,7.14]
[1757591091880,7.25,224.99,224.94,4.97254568]
[1757591092678,1.62715703,225.0,224.95,7.14]
[1757591092878,7.25,224.99,224.94,4.97254568]
[1757591093873,7.25,224.99,224.95,7.14]
[1757591094075,7.25,224.99,224.94,4.97254568]
[1757591094275,7.25,224.99,224.95,7.14]
[1757591094976,7.25,224.99,224.94,4.97254568]
[1757591095175,7.25,224.99,224.95,7.14]
[1757591095377,7.25,224.99,224.94,4.97254568]
[1757591095871,1.62715703,225.02,224.95,7.14]
[1757591096076,10.76886607,225.01,224.95,7.14]
[1757591096276,7.25,224.99,224.94,4.97254568]
[1757591096476,7.25,225.01,224.95,7.14]
[1757591096676,10.76881521,225.0,224.94,12.11254568]
[1757591096876,7.25,225.0,224.94,12.11254568]
[1757591097579,1.62715703,225.03,224.95,11.94254568]
[1757591097874,3.50465354,225.02,224.96,6.97]
[1757591098081,1.62715703,225.03,224.96,6.97]
[1757591098280,3.50465035,225.02,224.97,6.97]
[1757591098482,8.47715703,225.03,224.97,6.97]
[1757591098675,3.50439164,225.02,224.96,6.97]
[1757591098874,8.47715703,225.03,224.96,6.97]
[1757591099075,3.50453485,225.02,224.96,6.97]
[1757591099372,8.47715703,225.03,224.96,6.97]
[1757591099580,3.50497194,225.02,224.96,6.97]
[1757591099880,8.47715703,225.03,224.96,6.97]
[1757591100080,3.50497318,225.02,224.96,6.97]
[1757591100280,8.47715703,225.03,224.96,6.97]
[1757591100480,3.50495247,225.02,224.96,6.97]
[1757591100683,8.47715703,225.03,224.96,6.97]
[1757591100981,3.50495256,225.02,224.96,6.97]
[1757591101181,8.47715703,225.03,224.96,6.97]
[1757591101382,3.50474766,225.02,224.96,6.97]
[1757591101584,6.85,225.03,224.97,4.97254568]
[1757591103184,6.85,225.03,224.96,4.97254568]
[1757591103375,6.85,225.03,224.97,6.97]
[1757591107182,8.47715703,225.06,224.97,6.97]
[1757591107382,6.9952289,225.05,224.97,6.97]
[1757591107587,3.50413411,225.04,224.97,6.97]
[1757591107785,8.47715703,225.06,224.97,6.97]
[1757591108088,6.99551454,225.05,224.97,6.97]
[1757591108285,8.47715703,225.06,224.97,6.59970271]
[1757591108486,3.50418436,225.05,224.98,6.97]
[1757591108787,8.47715703,225.06,224.99,6.97]
[1757591108984,8.47715703,225.11,225.01,4.97254568]
[1757591109186,3.50443147,225.1,225.02,6.97]
[1757591109386,6.85,225.11,225.02,6.97]
[1757591109685,6.85,225.11,225.03,6.97]
[1757591109686,3.5031119,225.1,225.03,6.97]
[1757591109886,6.85,225.11,225.03,6.97]
[1757591110081,6.85,225.11,225.04,6.97]
[1757591110286,0.02930257,225.09,225.05,6.97]
[1757591110483,0.02930257,225.09,225.04,0.02886833]
[1757591111588,0.02930257,225.09,225.05,6.97]
[1757591111787,0.02930257,225.09,225.04,0.02886833]
[1757591112289,0.02930257,225.09,225.05,6.97]
[1757591112686,0.02930257,225.09,225.04,0.02886833]
[1757591113086,0.02930257,225.09,225.05,6.97]
[1757591113486,0.02930257,225.09,225.04,5.00141401]
[1757591113688,0.02930257,225.09,225.05,6.97]
[1757591113991,0.02930257,225.09,225.04,5.00141401]
[1757591114291,0.02930257,225.09,225.05,6.97]
[1757591114791,0.02930257,225.09,225.04,0.02886833]
[1757591114991,0.02930257,225.09,225.05,6.97]
[1757591119201,0.02930257,225.09,225.04,0.02886833]
[1757591119499,0.02930257,225.09,225.05,6.97]
[1757591129900,9.04715703,225.17,225.05,6.97]
[1757591130200,7.42,225.28,225.05,6.97]
[1757591130404,7.42,225.13,225.06,116.14]
[1757591131104,7.42,225.13,225.07,0.0303079]
[1757591132104,9.04715703,225.13,225.07,0.0303079]
[1757591133311,1.62715703,225.1,225.07,0.0303079]
[1757591133703,7.42,225.09,225.03,116.14]
[1757591133899,7.42,225.09,225.06,0.0296945]
[1757591134305,1.62715703,225.07,225.06,0.0296945]
[1757591134506,9.04715703,225.07,225.06,0.0296945]
[1757591134709,9.04715703,225.07,225.0,7.26]
[1757591135005,7.42,225.07,225.04,0.02818085]
[1757591136112,1.62715703,225.05,225.04,0.02818085]
[1757591136310,9.04715703,225.05,225.04,0.02818085]
[1757591136499,9.04715703,225.05,224.99,298.44]
[1757591136702,1.62715703,225.05,225.02,0.02820056]
[1757591136905,7.42,225.04,225.02,0.02820056]
[1757591137204,1.62715703,225.05,225.02,0.02820056]
[1757591137799,7.42,225.04,225.02,0.02820056]
[1757591138000,1.62715703,225.05,225.02,0.02820056]
[1757591138310,7.42,225.04,225.02,0.02820056]
[1757591139208,1.62715703,225.05,225.02,0.02820056]
[1757591139413,7.42,225.04,225.02,0.02820056]
[1757591139710,1.62715703,225.05,225.02,0.02820056]
[1757591141210,7.42,225.04,225.02,0.02820056]
[1757591141709,1.62715703,225.07,225.02,0.02820056]
[1757591142105,7.42,225.06,224.99,7.26]
[1757591142303,1.62715703,225.07,225.02,0.02888005]
[1757591142506,7.42,225.06,225.02,0.02888005]
[1757591142707,1.62715703,225.07,225.02,0.02888005]
[1757591143210,7.42,225.06,225.03,7.26]
[1757591143616,7.42,225.09,225.03,7.26]
[1757591144214,7.42,225.12,225.04,7.29204725]
[1757591144403,1.62715703,225.09,225.04,7.29204725]
[1757591144604,7.42,225.08,225.04,0.03204725]
[1757591144812,1.62715703,225.09,225.04,0.03204725]
[1757591145413,7.42,225.08,225.04,0.03204725]
[1757591145610,1.62715703,225.09,225.04,0.03204725]
[1757591146011,7.42,225.08,225.04,0.03204725]
[1757591146212,7.42,225.08,225.04,7.29204725]
[1757591146509,7.42,225.08,225.04,0.03204725]
[1757591146714,9.04715703,225.12,225.05,7.26]
[1757591147115,7.42,225.12,225.05,7.26]
[1757591147611,7.42,225.16,225.08,7.26]
[1757591147912,9.04715703,225.16,225.04,7.29204725]
[1757591148215,26.14,225.24,225.04,7.29204725]
[1757591148216,1.62715703,225.13,225.1,0.0327964]
[1757591148716,7.42,225.12,225.04,7.26]
[1757591149015,1.62715703,225.13,225.09,0.02946045]
[1757591149216,7.42,225.12,225.09,0.02946045]
[1757591149413,1.62715703,225.13,225.09,0.02946045]
[1757591149814,26.14,225.24,225.09,0.02946045]
[1757591150014,1.62715703,225.12,225.09,0.02946045]
[1757591150216,7.42,225.11,225.04,7.26]
[1757591150413,2.7350797,225.16,225.08,0.0339426]
[1757591150619,10.91885316,225.15,225.08,0.0339426]
[1757591150918,2.7350797,225.16,225.04,7.26]
[1757591150919,7.42,225.13,225.04,7.26]
[1757591151113,7.42,225.13,225.09,0.02922875]
[1757591151319,7.42,225.15,225.09,0.02922875]
[1757591151520,7.42,225.13,225.09,0.02922875]
[1757591153714,2.7350797,225.16,225.09,0.02922875]
[1757591153715,3.5028215,225.12,225.09,0.02922875]
[1757591153917,10.9228215,225.11,225.09,0.02922875]
[1757591154115,10.92456261,225.1,225.09,0.02922875]
[1757591154311,10.92456261,225.1,225.0,7.26]
[1757591154511,7.42,225.1,225.0,7.26]
[1757591166631,6.89,225.08,225.0,7.26]
[1757591166827,6.89,225.08,224.98,4.97254568]
[1757591167032,2.7350797,225.09,224.97,7.06]
[1757591167033,2.7350797,225.09,224.97,12.03254568]
[1757591167234,6.89,225.07,224.97,12.03254568]
[1757591167435,6.89,225.08,224.97,12.03254568]
[1757591167634,2.7350797,225.09,224.97,12.03254568]
[1757591167835,6.89,225.07,224.97,12.03254568]
[1757591169035,6.89,225.07,224.97,4.97254568]
[1757591169239,6.89,225.07,224.98,7.06]
[1757591177241,6.89,225.07,224.98,12.03254568]
[1757591177642,6.89,225.04,224.97,4.97254568]
[1757591177842,3.51826055,225.03,224.95,7.06]
[1757591178041,10.40826055,225.02,224.95,7.06]
[1757591178244,6.89,225.0,224.95,7.06]
[1757591178445,6.89,225.04,224.95,7.06]
[1757591178645,6.89,225.02,224.95,7.06]
[1757591178842,3.5168927,225.01,224.95,7.06]
[1757591179046,6.89,225.02,224.95,7.06]
[1757591196360,6.89,225.02,224.9,4.97254568]
[1757591196563,7.12,225.0,224.91,7.58]
[1757591197355,6.23854929,224.99,224.85,113.81254568]
[1757591197657,2.7350797,224.95,224.85,108.84]
[1757591197862,7.12,224.93,224.83,7.58]
[1757591198059,2.7350797,224.91,224.83,7.58]
[1757591198258,7.12,224.9,224.83,7.58]
[1757591199765,7.12,224.9,224.76,7.58]
[1757591200161,7.12,224.88,224.76,7.58]
[1757591200461,2.7350797,224.87,224.76,7.58]
[1757591200764,7.12,224.83,224.8,0.02876793]
[1757591202566,7.12,224.83,224.8,7.60876793]
[1757591203062,0.02809746,224.84,224.8,0.02876793]
[1757591203464,7.14809746,224.84,224.8,7.60876793]
[1757591203664,7.12,224.83,224.8,7.60876793]
[1757591205764,0.02809746,224.84,224.81,7.58]
[1757591205958,7.14809746,224.84,224.8,7.60876793]
[1757591206166,7.14809746,224.84,224.81,7.58]
[1757591206559,7.12,224.83,224.8,0.02876793]
[1757591208868,7.12,224.83,224.8,7.60876793]
[1757591209466,0.02809746,224.84,224.81,7.58]
[1757591209668,0.02809746,224.84,224.8,0.02876793]
[1757591209868,0.02809746,224.84,224.81,7.58]
[1757591210571,0.02809746,224.84,224.8,0.02876793]
[1757591210972,0.02809746,224.84,224.81,7.58]
[1757591211471,0.02809746,224.84,224.8,0.02876793]
[1757591211671,0.02809746,224.84,224.81,7.58]
[1757591211869,0.02809746,224.84,224.8,0.02876793]
[1757591212376,0.02809746,224.84,224.81,7.58]
[1757591212673,0.02809746,224.84,224.8,0.02876793]
[1757591212978,0.02809746,224.84,224.81,7.58]
[1757591213776,0.02809746,224.84,224.8,0.02876793]
[1757591214372,0.02809746,224.84,224.81,7.58]
[1757591214573,0.02809746,224.84,224.8,0.02876793]
[1757591214889,0.02809746,224.84,224.81,7.58]
[1757591215080,0.02809746,224.84,224.8,0.02876793]
[1757591215272,0.02809746,224.84,224.81,7.58]
[1757591215882,0.02809746,224.84,224.8,0.02876793]
[1757591216082,0.02809746,224.84,224.81,7.58]
[1757591216282,0.02809746,224.84,224.8,0.02876793]
[1757591217078,0.02809746,224.84,224.81,7.58]
[1757591217383,0.02809746,224.84,224.81,7.42]
[1757591217584,0.02809746,224.84,224.8,0.02876793]
[1757591217785,0.02809746,224.84,224.81,7.42]
[1757591218479,0.02809746,224.84,224.8,0.02876793]
[1757591219284,0.02809746,224.84,224.81,7.42]
[1757591219884,0.02809746,224.84,224.8,0.02876793]
[1757591220979,0.02809746,224.84,224.81,7.42]
[1757591221787,0.02809746,224.84,224.8,0.02876793]
[1757591221978,0.02809746,224.84,224.81,7.42]
[1757591222178,0.02809746,224.84,224.8,0.02876793]
[1757591222593,0.02809746,224.84,224.81,7.42]
[1757591222886,0.02809746,224.84,224.8,0.02876793]
[1757591223287,7.06,224.83,224.8,7.44876793]
[1757591223781,0.02809746,224.84,224.8,0.02876793]
[1757591223984,7.06,224.83,224.8,0.02876793]
[1757591224187,0.02809746,224.84,224.8,0.02876793]
[1757591224390,0.02809746,224.84,224.81,7.42]
[1757591224586,7.08809746,224.84,224.81,7.42]
[1757591224989,7.08809746,224.84,224.8,0.02876793]
[1757591225189,7.08809746,224.84,224.81,7.42]
[1757591225490,7.08809746,224.84,224.8,0.02876793]
[1757591225686,7.08809746,224.84,224.81,7.42]
[1757591226591,0.02809746,224.84,224.8,0.02876793]
[1757591227391,0.02809746,224.84,224.81,7.42]
[1757591227790,0.02809746,224.84,224.8,0.02876793]
[1757591228187,0.02809746,224.84,224.81,108.86]
[1757591228387,0.02809746,224.84,224.82,7.42]
[1757591228588,0.02809746,224.84,224.81,108.86]
[1757591228994,0.02809746,224.84,224.82,7.42]
[1757591229194,0.02809746,224.84,224.81,108.86]
[1757591230595,0.02809746,224.84,224.82,7.42]
[1757591230796,0.02809746,224.84,224.81,108.86]
[1757591230993,0.02809746,224.84,224.8,0.02876793]
[1757591231198,0.02809746,224.84,224.83,7.42]
[1757591238812,0.02809746,224.84,224.81,7.42]
[1757591239113,7.08809746,224.84,224.82,108.84]
[1757591239411,7.06,224.83,224.8,0.02876793]
[1757591239610,0.02809746,224.84,224.8,0.02876793]
[1757591239806,7.06,224.83,224.8,0.02876793]
[1757591240006,7.06,224.83,224.8,7.44876793]
[1757591243706,7.06,224.83,224.8,0.02876793]
[1757591244308,0.02809746,224.84,224.8,0.02876793]
[1757591244618,7.06,224.81,224.8,0.02876793]
[1757591280234,6.95809746,224.84,224.81,7.39]
[1757591280438,0.02809746,224.84,224.81,7.39]
[1757591280827,0.02809746,224.84,224.8,5.00131361]
[1757591281936,0.02809746,224.84,224.81,7.39]
[1757591283135,0.02809746,224.84,224.8,5.00131361]
[1757591283441,0.02809746,224.84,224.81,7.39]
[1757591284429,0.02809746,224.84,224.8,5.00131361]
[1757591284838,0.02809746,224.84,224.81,7.39]
[1757591285232,0.02809746,224.84,224.8,5.00131361]
[1757591285635,0.02809746,224.84,224.81,7.39]
[1757591286438,0.02809746,224.84,224.8,5.00131361]
[1757591286638,0.02809746,224.84,224.81,7.39]
[1757591287040,0.02809746,224.84,224.8,5.00131361]
[1757591288144,0.02809746,224.84,224.81,7.39]
[1757591288744,0.02809746,224.84,224.8,0.02876793]
[1757591288939,0.02809746,224.84,224.81,7.39]
[1757591289140,0.02809746,224.84,224.8,0.02876793]
[1757591289542,0.02809746,224.84,224.81,7.39]
[1757591289742,0.02809746,224.84,224.8,0.02876793]
[1757591289943,0.02809746,224.84,224.81,7.39]
[1757591290348,0.02809746,224.84,224.8,0.02876793]
[1757591290544,0.02809746,224.84,224.81,7.39]
[1757591291949,0.02809746,224.84,224.8,5.00131361]
[1757591292149,0.02809746,224.84,224.81,7.39]
[1757591292350,0.02809746,224.84,224.8,0.02876793]
[1757591292550,0.02809746,224.84,224.81,7.39]
[1757591294447,6.93,224.94,224.84,7.39]
[1757591294946,112.03999039,224.99,224.84,7.39]
[1757591294947,6.93,224.99,224.87,2.54635422]
[1757591295151,6.93,224.99,224.91,7.39]
[1757591295450,6.93,224.99,224.91,7.42370468]
[1757591296757,6.93,225.09,224.92,7.39]
[1757591297054,6.93,225.07,224.93,7.39]
[1757591297251,6.93,225.05,224.93,7.39]
[1757591297452,6.93,225.05,224.98,0.03363361]
[1757591301958,6.93,225.05,224.98,7.42363361]
[1757591302557,0.03063927,225.04,224.98,7.42363361]
[1757591305867,0.03063927,225.04,224.98,10.89363361]
[1757591306066,0.03063927,225.04,224.99,7.39]
[1757591306469,0.03063927,225.04,225.0,7.39]
[1757591306673,0.03063927,225.04,224.98,0.03363361]
[1757591307266,0.03063927,225.04,224.99,7.46]
[1757591307771,0.03063927,225.04,224.98,0.03363361]
[1757591307966,0.03063927,225.04,224.99,7.46]
[1757591308166,0.03063927,225.04,224.98,0.03363361]
[1757591308567,0.03063927,225.04,224.99,7.46]
[1757591308768,0.03063927,225.04,224.98,0.03363361]
[1757591309167,0.03063927,225.04,224.99,7.46]
[1757591309370,0.03063927,225.04,224.98,0.03363361]
[1757591310170,0.03063927,225.04,224.99,7.46]
[1757591310373,0.03063927,225.04,224.98,0.03363361]
[1757591311174,7.01063927,225.04,224.98,7.49363361]
[1757591311574,7.01063927,225.04,224.98,0.03363361]
[1757591318774,6.98,225.02,224.98,0.03363361]
[1757591321276,9.52635422,225.02,224.98,0.03363361]
[1757591321979,6.98,225.03,224.98,0.03363361]
[1757591325083,6.98,225.01,224.98,0.03363361]
[1757591325584,6.98,225.03,224.98,0.03363361]
[1757591328074,6.98,225.0,224.89,7.46]
[1757591328482,6.98,224.98,224.89,7.46]
[1757591329484,6.98,224.95,224.89,7.46]
[1757591331377,0.02881184,224.96,224.89,7.46]
[1757591331786,7.00881184,224.96,224.9,0.02811033]
[1757591333786,1.62775135,224.94,224.9,0.02811033]
[1757591333985,6.98,224.93,224.9,0.02811033]
[1757591334390,0.02881184,224.96,224.9,0.02811033]
[1757591335792,0.02881184,224.96,224.91,7.46]
[1757591336290,0.02881184,224.96,224.9,0.02811033]
[1757591337192,0.02881184,224.96,224.91,7.22]
[1757591337491,0.02881184,224.96,224.9,0.02811033]
[1757591337890,0.02881184,224.96,224.9,7.24811033]
[1757591339091,7.13881184,224.96,224.9,7.24811033]
[1757591347489,1.62775135,224.95,224.9,0.02811033]
[1757591347888,7.11,224.94,224.9,0.02811033]
[1757591348294,0.02881184,224.96,224.9,0.02811033]
[1757591348295,1.62775135,224.92,224.9,0.02811033]
[1757591348496,7.11,224.91,224.9,0.02811033]
[1757591349804,7.11,224.91,224.83,7.22]
[1757591351112,0.03381759,224.89,224.83,7.22]
[1757591353206,0.03381759,224.89,224.85,7.22]
[1757591355918,0.03381759,224.89,224.85,12.19254568]
[1757591356120,0.03381759,224.89,224.85,4.97254568]
[1757591356413,0.03381759,224.89,224.86,7.22]
[1757591357118,0.03381759,224.89,224.87,7.22]
[1757591357312,0.03381759,224.89,224.86,108.62]
[1757591357517,0.03381759,224.89,224.87,7.22]
[1757591357716,0.03381759,224.89,224.86,108.62]
[1757591358012,0.03381759,224.89,224.87,7.22]
[1757591358213,0.03381759,224.89,224.86,108.62]
[1757591359308,0.03381759,224.89,224.87,7.22]
[1757591359513,0.03381759,224.89,224.86,108.62]
[1757591359718,0.03381759,224.89,224.87,7.22]
[1757591360117,0.03381759,224.89,224.86,108.62]
[1757591360319,0.03381759,224.89,224.87,7.22]
[1757591360923,0.03381759,224.89,224.86,108.62]
[1757591361717,0.03381759,224.89,224.87,7.22]
[1757591362219,0.03381759,224.89,224.86,113.59254568]
[1757591362920,0.03381759,224.89,224.87,7.22]
[1757591365315,0.03381759,224.89,224.86,113.59254568]
[1757591366123,0.03381759,224.89,224.87,7.22]
[1757591366320,0.03381759,224.89,224.86,113.59254568]
[1757591366516,0.03381759,224.89,224.87,7.22]
[1757591366718,0.03381759,224.89,224.86,113.59254568]
[1757591367824,0.03381759,224.89,224.87,6.87]
[1757591368217,0.03381759,224.89,224.86,113.59254568]
[1757591368521,0.03381759,224.89,224.88,6.87]
[1757591388234,0.03381759,224.89,224.88,11.84254568]
[1757591389731,7.11,224.95,224.87,7.39391172]
[1757591389932,1.62775135,224.96,224.91,6.87]
[1757591390138,1.62775135,224.96,224.91,108.58]
[1757591390338,8.74775135,224.96,224.91,108.58]
[1757591390542,8.74775135,224.96,224.92,6.87]
[1757591390738,8.74775135,224.96,224.91,108.58]
[1757591391041,8.74775135,224.96,224.92,6.87]
[1757591391242,8.74775135,224.96,224.91,108.58]
[1757591391939,1.62775135,224.98,224.92,6.87]
[1757591392139,1.62775135,224.98,224.91,108.58]
[1757591392140,3.52258144,224.97,224.91,108.58]
[1757591392338,8.74775135,224.98,224.92,6.87]
[1757591392540,3.52233765,224.97,224.91,108.58]
[1757591392730,8.74775135,224.98,224.92,6.87]
[1757591392936,3.52277014,224.97,224.92,6.87]
[1757591393236,8.74775135,224.98,224.92,6.87]
[1757591393440,3.52246997,224.97,224.92,6.87]
[1757591393636,8.74775135,224.98,224.92,6.87]
[1757591394337,7.12,224.98,224.92,6.87]
[1757591394843,7.12,224.98,224.92,11.86212664]
[1757591395946,7.12,224.98,224.92,4.99212664]
[1757591396144,7.12,225.01,224.93,6.87]
[1757591396345,3.52276472,225.0,224.93,6.87]
[1757591396546,7.12,225.01,224.93,6.87]
[1757591396840,3.52263485,225.0,224.93,6.87]
[1757591397044,7.12,225.01,224.93,6.87]
[1757591397345,3.52269566,225.0,224.94,7.3]
[1757591397541,7.2,225.04,224.94,7.3]
[1757591397840,3.52259003,225.03,224.95,7.3]
[1757591398147,3.52259003,225.02,224.96,108.56]
[1757591398441,7.2,225.03,224.97,7.3]
[1757591398643,3.52656555,225.02,224.97,7.3]
[1757591398942,7.2,225.03,224.97,7.3]
[1757591399142,3.52683972,225.02,224.96,108.56]
[1757591399343,7.2,225.03,224.97,7.3]
[1757591399539,3.52576641,225.02,224.97,7.3]
[1757591399844,7.2,225.04,224.97,7.3]
[1757591400145,3.52589634,225.03,224.97,7.3]
[1757591400340,3.52589634,225.02,224.97,7.3]
[1757591400535,7.2,225.04,224.97,7.3]
[1757591400742,3.52595764,225.03,224.97,23.04]
[1757591400943,7.2,225.04,224.97,23.04]
[1757591401144,3.52717253,225.03,224.97,23.04]
[1757591401335,7.2,225.04,224.97,23.04]
[1757591401644,3.52636022,225.03,224.97,7.3]
[1757591401845,7.2,225.04,224.97,7.3]
[1757591402044,3.52637714,225.03,224.97,7.3]
[1757591402244,7.2,225.04,224.97,7.3]
[1757591402446,3.52517124,225.03,224.97,7.3]
[1757591402747,7.2,225.04,224.97,7.3]
[1757591403045,3.52517124,225.03,224.97,7.3]
[1757591403241,7.2,225.04,224.97,7.3]
[1757591403443,3.524405,225.03,224.97,7.3]
[1757591403641,3.524405,225.03,224.84,9.85854896]
[1757591403642,9.74263501,225.01,224.92,4.99212664]
[1757591403844,7.2,225.0,224.93,12.34]
[1757591404048,7.2,225.03,224.94,7.3]
[1757591411145,114.26333464,225.08,224.94,7.3]
[1757591411146,7.2,225.0,224.94,7.3]
[1757591411553,7.2,225.0,224.91,21.08]
[1757591411554,7.2,225.0,224.91,7.3]
[1757591411752,7.2,224.96,224.88,7.3]
[1757591413446,7.2,225.0,224.88,7.3]
[1757591413653,7.2,225.0,224.89,4.99212664]
[1757591413854,7.2,225.0,224.9,7.3]
[1757591419952,7.2,224.98,224.9,7.3]
[1757591424056,7.2,224.96,224.9,7.3]
[1757591427555,7.2,224.96,224.87,7.49]
[1757591427865,7.37,224.94,224.84,7.49]
[1757591428065,3.52192906,224.93,224.84,7.49]
[1757591428261,7.37,224.96,224.84,7.49]
[1757591428562,7.37,224.94,224.84,7.49]
[1757591428767,7.37,224.92,224.84,7.49]
[1757591443478,7.37,224.96,224.84,7.49]
[1757591453489,7.37,224.94,224.84,7.49]
[1757591454389,1.62820732,224.93,224.84,7.49]
[1757591455285,1.62820732,224.93,224.84,12.48212664]